[Event "Estonian Chess Championship 2021"]
[Site "Tallinn, Paul Keres Chess House, Estonia"]
[Date "2021.12.16"]
[Round "6.4"]
[White "Timoshin, Andrei"]
[Black "Volodin, Aleksandr"]
[Result "0-1"]
[TimeControl "90 minutes for first 40 moves and 15 min. for the rest of the game with 30 sec."]
[BlackTitle "GM"]
[WhiteFideId "4503503"]
[BlackFideId "4501950"]
[WhiteElo "2150"]
[BlackElo "2461"]

1. e4 {[%clk 01:26:52]} {[%emt 00:04:07]} c5 {[%clk 01:30:55]} {[%emt
00:00:06]} 2. Nf3 {[%clk 01:27:11]} {[%emt 00:00:11]} Nc6 {[%clk 01:31:21]}
{[%emt 00:00:05]} 3. Bb5 {[%clk 01:27:15]} {[%emt 00:00:25]} e6 {[%clk
01:31:11]} {[%emt 00:00:39]} 4. Bxc6 {[%clk 01:21:51]} {[%emt 00:05:54]} bxc6
{[%clk 01:31:28]} {[%emt 00:00:14]} 5. Qe2 {[%clk 01:21:49]} {[%emt 00:00:32]}
Ne7 {[%clk 01:31:25]} {[%emt 00:00:32]} 6. Nh4 {[%clk 01:21:53]} {[%emt
00:00:26]} g6 {[%clk 01:31:19]} {[%emt 00:00:37]} 7. d3 {[%clk 01:12:37]}
{[%emt 00:09:47]} Bg7 {[%clk 01:31:42]} {[%emt 00:00:07]} 8. O-O {[%clk
01:11:22]} {[%emt 00:01:44]} O-O {[%clk 01:25:25]} {[%emt 00:06:47]} 9. c4
{[%clk 00:59:48]} {[%emt 00:12:04]} d6 {[%clk 01:18:37]} {[%emt 00:07:17]} 10.
f4 {[%clk 00:58:15]} {[%emt 00:02:03]} Nf5 {[%clk 01:18:43]} {[%emt 00:00:25]}
11. Nf3 {[%clk 00:57:21]} {[%emt 00:01:23]} Nd4 {[%clk 01:17:17]} {[%emt
00:01:56]} 12. Nxd4 {[%clk 00:57:48]} {[%emt 00:00:03]} cxd4 {[%clk 01:16:39]}
{[%emt 00:01:07]} 13. Nd2 {[%clk 00:57:14]} {[%emt 00:01:03]} c5 {[%clk
01:14:20]} {[%emt 00:02:50]} 14. e5 {[%clk 00:45:34]} {[%emt 00:12:10]} Bb7
{[%clk 01:10:40]} {[%emt 00:04:10]} 15. Ne4 {[%clk 00:33:22]} {[%emt 00:12:42]}
Bxe4 {[%clk 01:10:52]} {[%emt 00:00:18]} 16. Qxe4 {[%clk 00:33:50]} {[%emt
00:00:01]} a5 {[%clk 01:10:09]} {[%emt 00:01:14]} 17. exd6 {[%clk 00:29:30]}
{[%emt 00:04:50]} Qxd6 {[%clk 01:08:33]} {[%emt 00:02:06]} 18. Bd2 {[%clk
00:21:46]} {[%emt 00:08:14]} Qb6 {[%clk 01:05:12]} {[%emt 00:03:51]} 19. Rab1
{[%clk 00:21:20]} {[%emt 00:00:56]} Rfb8 {[%clk 01:04:46]} {[%emt 00:00:56]} 20.
Qf3 {[%clk 00:18:22]} {[%emt 00:03:28]} Ra7 {[%clk 00:58:43]} {[%emt 00:06:33]}
21. Rf2 {[%clk 00:14:53]} {[%emt 00:03:58]} Qc7 {[%clk 00:58:20]} {[%emt
00:00:53]} 22. Re2 {[%clk 00:12:18]} {[%emt 00:03:05]} Qd7 {[%clk 00:57:35]}
{[%emt 00:01:15]} 23. Bc1 {[%clk 00:11:13]} {[%emt 00:01:35]} Rab7 {[%clk
00:57:14]} {[%emt 00:00:52]} 24. Ra1 {[%clk 00:11:18]} {[%emt 00:00:26]} Rb6
{[%clk 00:55:55]} {[%emt 00:01:49]} 25. Re1 {[%clk 00:10:39]} {[%emt 00:01:08]}
Bf8 {[%clk 00:51:59]} {[%emt 00:04:27]} 26. Qe4 {[%clk 00:09:40]} {[%emt
00:01:29]} Bd6 {[%clk 00:51:31]} {[%emt 00:00:57]} 27. Qf3 {[%clk 00:09:15]}
{[%emt 00:00:55]} Qa4 {[%clk 00:51:10]} {[%emt 00:00:51]} 28. Qe4 {[%clk
00:08:55]} {[%emt 00:00:49]} Bc7 {[%clk 00:46:37]} {[%emt 00:05:04]} 29. Qf3
{[%clk 00:09:23]} {[%emt 00:00:02]} Qd7 {[%clk 00:46:55]} {[%emt 00:00:12]} 30.
Re2 {[%clk 00:09:11]} {[%emt 00:00:42]} Re8 {[%clk 00:45:59]} {[%emt 00:01:27]}
31. Rb1 {[%clk 00:08:15]} {[%emt 00:01:26]} Qa4 {[%clk 00:41:30]} {[%emt
00:04:59]} 32. Ra1 {[%clk 00:08:43]} {[%emt 00:00:02]} e5 {[%clk 00:33:55]}
{[%emt 00:08:05]} 33. fxe5 {[%clk 00:03:59]} {[%emt 00:05:15]} Qd1+ {[%clk
00:29:35]} {[%emt 00:04:50]} 34. Kf2 {[%clk 00:04:26]} {[%emt 00:00:02]} Bxe5
{[%clk 00:30:00]} {[%emt 00:00:05]} 35. b3 {[%clk 00:03:13]} {[%emt 00:01:43]}
Rbe6 {[%clk 00:28:19]} {[%emt 00:02:11]} 36. Re4 {[%clk 00:00:43]} {[%emt
00:03:00]} Qh1 {[%clk 00:22:20]} {[%emt 00:06:29]} 37. Bb2 {[%clk 00:00:33]}
{[%emt 00:00:40]} Qxh2 {[%clk 00:22:33]} {[%emt 00:00:17]} 38. Rf1 {[%clk
00:00:31]} {[%emt 00:00:32]} f5 {[%clk 00:22:52]} {[%emt 00:00:10]} 39. Ree1
{[%clk 00:00:31]} {[%emt 00:00:31]} Qh4+ {[%clk 00:22:58]} {[%emt 00:00:23]} 40.
g3 {[%clk 00:15:32]} {[%emt 00:00:29]} Qh2+ {[%clk 00:38:04]} {[%emt 00:00:24]}
0-1

[Event "Estonian Chess Championship 2021"]
[Site "Tallinn, Paul Keres Chess House, Estonia"]
[Date "2021.12.16"]
[Round "6.5"]
[White "Pedmanson, Albert"]
[Black "Hansson, Markus"]
[Result "1-0"]
[TimeControl "90 minutes for first 40 moves and 15 min. for the rest of the game with 30 sec."]
[WhiteFideId "4505778"]
[BlackFideId "4505620"]
[WhiteElo "1888"]
[BlackElo "1662"]

1. e4 {[%clk 01:30:43]} {[%emt 00:00:17]} e6 {[%clk 01:30:22]} {[%emt
00:00:38]} 2. d4 {[%clk 01:31:00]} {[%emt 00:00:13]} d5 {[%clk 01:30:43]}
{[%emt 00:00:09]} 3. Nd2 {[%clk 01:31:07]} {[%emt 00:00:23]} c5 {[%clk
01:30:52]} {[%emt 00:00:21]} 4. c3 {[%clk 01:30:22]} {[%emt 00:01:16]} Nc6
{[%clk 01:30:13]} {[%emt 00:01:09]} 5. Ngf3 {[%clk 01:28:49]} {[%emt 00:02:01]}
Nf6 {[%clk 01:26:45]} {[%emt 00:04:00]} 6. Bd3 {[%clk 01:24:32]} {[%emt
00:04:47]} Be7 {[%clk 01:19:49]} {[%emt 00:07:25]} 7. O-O {[%clk 01:23:22]}
{[%emt 00:01:39]} O-O {[%clk 01:16:37]} {[%emt 00:03:43]} 8. dxc5 {[%clk
01:04:37]} {[%emt 00:19:15]} Bxc5 {[%clk 01:12:43]} {[%emt 00:04:24]} 9. b4
{[%clk 01:02:30]} {[%emt 00:02:37]} Bb6 {[%clk 01:11:26]} {[%emt 00:01:47]} 10.
Qc2 {[%clk 00:58:17]} {[%emt 00:04:43]} h6 {[%clk 01:08:16]} {[%emt 00:03:40]}
11. Bb2 {[%clk 00:49:45]} {[%emt 00:09:02]} Re8 {[%clk 01:01:09]} {[%emt
00:07:37]} 12. Rad1 {[%clk 00:42:18]} {[%emt 00:07:56]} Qc7 {[%clk 00:54:08]}
{[%emt 00:07:31]} 13. a3 {[%clk 00:37:43]} {[%emt 00:05:06]} dxe4 {[%clk
00:42:48]} {[%emt 00:11:49]} 14. Nxe4 {[%clk 00:36:47]} {[%emt 00:01:26]} Nxe4
{[%clk 00:43:02]} {[%emt 00:00:16]} 15. Bxe4 {[%clk 00:37:11]} {[%emt
00:00:06]} Ne5 {[%clk 00:42:48]} {[%emt 00:00:45]} 16. Nxe5 {[%clk 00:29:06]}
{[%emt 00:08:35]} Qxe5 {[%clk 00:43:10]} {[%emt 00:00:08]} 17. c4 {[%clk
00:29:15]} {[%emt 00:00:21]} Qh5 {[%clk 00:42:26]} {[%emt 00:01:13]} 18. Qc3
{[%clk 00:27:02]} {[%emt 00:02:43]} e5 {[%clk 00:40:21]} {[%emt 00:02:35]} 19.
c5 {[%clk 00:24:14]} {[%emt 00:03:18]} Bc7 {[%clk 00:40:20]} {[%emt 00:00:32]}
20. c6 {[%clk 00:23:35]} {[%emt 00:01:08]} b6 {[%clk 00:39:41]} {[%emt
00:01:09]} 21. Rd7 {[%clk 00:22:50]} {[%emt 00:01:15]} Ba6 {[%clk 00:35:09]}
{[%emt 00:05:02]} 22. Re1 {[%clk 00:18:20]} {[%emt 00:04:59]} Rac8 {[%clk
00:29:23]} {[%emt 00:06:17]} 23. Qb3 {[%clk 00:18:10]} {[%emt 00:00:40]} Red8
{[%clk 00:18:29]} {[%emt 00:11:24]} 24. b5 {[%clk 00:15:53]} {[%emt 00:02:48]}
Rxd7 {[%clk 00:17:26]} {[%emt 00:01:33]} 25. cxd7 {[%clk 00:16:14]} {[%emt
00:00:09]} Rd8 {[%clk 00:17:48]} {[%emt 00:00:08]} 26. bxa6 {[%clk 00:14:38]}
{[%emt 00:02:06]} Rxd7 {[%clk 00:18:12]} {[%emt 00:00:06]} 27. g3 {[%clk
00:14:57]} {[%emt 00:00:12]} Qg5 {[%clk 00:13:56]} {[%emt 00:04:46]} 28. Rd1
{[%clk 00:12:17]} {[%emt 00:03:10]} Rd2 {[%clk 00:13:42]} {[%emt 00:00:44]} 29.
Rxd2 {[%clk 00:11:50]} {[%emt 00:00:56]} Qxd2 {[%clk 00:14:07]} {[%emt
00:00:05]} 30. Qc3 {[%clk 00:11:15]} {[%emt 00:01:06]} Qd1+ {[%clk 00:13:12]}
{[%emt 00:01:24]} 31. Kg2 {[%clk 00:11:39]} {[%emt 00:00:06]} Bd6 {[%clk
00:13:39]} {[%emt 00:00:03]} 32. Qc8+ {[%clk 00:10:23]} {[%emt 00:01:47]} Bf8
{[%clk 00:14:06]} {[%emt 00:00:03]} 33. Qf5 {[%clk 00:10:44]} {[%emt 00:00:08]}
Bc5 {[%clk 00:12:42]} {[%emt 00:01:54]} 34. Qxe5 {[%clk 00:10:25]} {[%emt
00:00:50]} Bf8 {[%clk 00:12:37]} {[%emt 00:00:35]} 35. Qf5 {[%clk 00:10:34]}
{[%emt 00:00:21]} Bc5 {[%clk 00:13:01]} {[%emt 00:00:06]} 36. Qh7+ {[%clk
00:10:28]} {[%emt 00:00:35]} Kf8 {[%clk 00:13:27]} {[%emt 00:00:04]} 37. Qxg7+
{[%clk 00:10:53]} {[%emt 00:00:05]} Ke7 {[%clk 00:13:25]} {[%emt 00:00:33]} 38.
Qf6+ {[%clk 00:11:06]} {[%emt 00:00:15]} Kf8 {[%clk 00:13:37]} {[%emt
00:00:20]} 39. Qxh6+ {[%clk 00:10:55]} {[%emt 00:00:41]} Ke7 {[%clk 00:13:41]}
{[%emt 00:00:26]} 40. Qg5+ {[%clk 00:25:22]} {[%emt 00:01:00]} Kd7 {[%clk
00:27:39]} {[%emt 00:01:35]} 41. Qd5+ {[%clk 00:25:12]} {[%emt 00:00:39]} Qxd5
{[%clk 00:28:01]} {[%emt 00:00:09]} 42. Bxd5 {[%clk 00:25:41]} {[%emt
00:00:01]} f5 {[%clk 00:28:14]} {[%emt 00:00:15]} 43. Bg7 {[%clk 00:25:39]}
{[%emt 00:00:33]} Kd6 {[%clk 00:27:22]} {[%emt 00:01:23]} 44. Bb3 {[%clk
00:25:35]} {[%emt 00:00:33]} Kc6 {[%clk 00:27:19]} {[%emt 00:00:33]} 45. h4
{[%clk 00:25:52]} {[%emt 00:00:13]} Bxa3 {[%clk 00:27:44]} {[%emt 00:00:05]} 46.
h5 {[%clk 00:26:19]} {[%emt 00:00:03]} Bc1 {[%clk 00:28:05]} {[%emt 00:00:08]}
47. f4 {[%clk 00:26:42]} {[%emt 00:00:08]} b5 {[%clk 00:27:35]} {[%emt
00:01:01]} 48. h6 {[%clk 00:26:54]} {[%emt 00:00:17]} b4 {[%clk 00:27:52]}
{[%emt 00:00:13]} 49. h7 {[%clk 00:27:13]} {[%emt 00:00:11]} Bd2 {[%clk
00:27:33]} {[%emt 00:00:49]} 50. h8=Q {[%clk 00:27:30]} {[%emt 00:00:13]} Bc3
{[%clk 00:27:56]} {[%emt 00:00:08]} 51. Qc8+ {[%clk 00:27:42]} {[%emt
00:00:17]} Kb5 {[%clk 00:28:09]} {[%emt 00:00:16]} 52. Qb7+ {[%clk 00:26:47]}
{[%emt 00:01:25]} Ka5 {[%clk 00:28:13]} {[%emt 00:00:26]} 53. Bc4 {[%clk
00:26:38]} {[%emt 00:00:38]} Ka4 {[%clk 00:28:36]} {[%emt 00:00:08]} 54. Bxc3
{[%clk 00:26:58]} {[%emt 00:00:10]} bxc3 {[%clk 00:28:12]} {[%emt 00:00:54]} 55.
Qb5+ {[%clk 00:27:07]} {[%emt 00:00:21]} Ka3 {[%clk 00:28:39]} {[%emt
00:00:04]} 56. Qb3# {[%clk 00:27:26]} {[%emt 00:00:10]} 1-0

[Event "Estonian Chess Championship 2021"]
[Site "Tallinn, Paul Keres Chess House, Estonia"]
[Date "2021.12.17"]
[Round "7.1"]
[White "Hansson, Markus"]
[Black "Kanep, Meelis"]
[Result "0-1"]
[TimeControl "90 minutes for first 40 moves and 15 min. for the rest of the game with 30 sec."]
[BlackTitle "GM"]
[WhiteFideId "4505620"]
[BlackFideId "4501047"]
[WhiteElo "1662"]
[BlackElo "2433"]

1. c4 {[%clk 01:30:56]} {[%emt 00:00:03]} e6 {[%clk 01:29:48]} {[%emt
00:01:13]} 2. e4 {[%clk 01:31:13]} {[%emt 00:00:13]} c5 {[%clk 01:30:07]}
{[%emt 00:00:11]} 3. Nc3 {[%clk 01:31:29]} {[%emt 00:00:13]} Nc6 {[%clk
01:30:32]} {[%emt 00:00:05]} 4. g3 {[%clk 01:31:47]} {[%emt 00:00:13]} Nf6
{[%clk 01:30:49]} {[%emt 00:00:13]} 5. Bg2 {[%clk 01:31:48]} {[%emt 00:00:28]}
d5 {[%clk 01:31:09]} {[%emt 00:00:10]} 6. cxd5 {[%clk 01:30:37]} {[%emt
00:01:42]} exd5 {[%clk 01:28:48]} {[%emt 00:02:51]} 7. Nxd5 {[%clk 01:23:52]}
{[%emt 00:07:15]} Nxd5 {[%clk 01:28:47]} {[%emt 00:00:31]} 8. exd5 {[%clk
01:24:18]} {[%emt 00:00:04]} Nb4 {[%clk 01:29:12]} {[%emt 00:00:05]} 9. d3
{[%clk 01:15:22]} {[%emt 00:09:25]} Be7 {[%clk 01:23:26]} {[%emt 00:06:16]} 10.
Qb3 {[%clk 01:11:14]} {[%emt 00:04:39]} Bf5 {[%clk 01:19:15]} {[%emt 00:04:40]}
11. Be4 {[%clk 01:10:34]} {[%emt 00:01:09]} c4 {[%clk 01:18:57]} {[%emt
00:00:49]} 12. Qa4+ {[%clk 01:06:29]} {[%emt 00:04:35]} b5 {[%clk 01:17:35]}
{[%emt 00:01:51]} 13. Qd1 {[%clk 01:06:37]} {[%emt 00:00:22]} Nxd3+ {[%clk
01:17:10]} {[%emt 00:00:55]} 14. Bxd3 {[%clk 01:06:25]} {[%emt 00:00:43]} Bxd3
{[%clk 01:16:53]} {[%emt 00:00:47]} 15. Ne2 {[%clk 01:06:07]} {[%emt 00:00:47]}
Qxd5 {[%clk 01:12:11]} {[%emt 00:05:12]} 16. O-O {[%clk 01:01:40]} {[%emt
00:04:57]} Qd7 {[%clk 01:09:34]} {[%emt 00:03:08]} 17. Re1 {[%clk 01:01:37]}
{[%emt 00:00:33]} O-O {[%clk 01:09:53]} {[%emt 00:00:11]} 18. Nf4 {[%clk
01:01:45]} {[%emt 00:00:22]} Bf6 {[%clk 01:08:58]} {[%emt 00:01:25]} 19. a4
{[%clk 01:00:44]} {[%emt 00:01:31]} b4 {[%clk 01:06:42]} {[%emt 00:02:45]} 20.
Nxd3 {[%clk 01:00:38]} {[%emt 00:00:37]} cxd3 {[%clk 01:06:28]} {[%emt
00:00:43]} 21. Rb1 {[%clk 00:46:24]} {[%emt 00:14:44]} Rac8 {[%clk 01:03:46]}
{[%emt 00:03:12]} 22. Re3 {[%clk 00:45:33]} {[%emt 00:01:21]} Rfd8 {[%clk
01:02:25]} {[%emt 00:01:51]} 23. Bd2 {[%clk 00:45:04]} {[%emt 00:01:00]} a5
{[%clk 01:01:51]} {[%emt 00:01:04]} 24. b3 {[%clk 00:44:40]} {[%emt 00:00:54]}
Rc2 {[%clk 01:00:14]} {[%emt 00:02:06]} 25. Rc1 {[%clk 00:44:28]} {[%emt
00:00:43]} Bg5 {[%clk 00:57:55]} {[%emt 00:02:48]} 26. f4 {[%clk 00:44:29]}
{[%emt 00:00:29]} Bf6 {[%clk 00:58:07]} {[%emt 00:00:18]} 27. Re4 {[%clk
00:42:55]} {[%emt 00:02:03]} Bd4+ {[%clk 00:53:30]} {[%emt 00:05:07]} 28. Be3
{[%clk 00:40:33]} {[%emt 00:02:53]} Bxe3+ {[%clk 00:53:46]} {[%emt 00:00:14]}
29. Rxe3 {[%clk 00:40:55]} {[%emt 00:00:08]} Rxc1 {[%clk 00:54:05]} {[%emt
00:00:11]} 30. Qxc1 {[%clk 00:41:19]} {[%emt 00:00:06]} d2 {[%clk 00:54:29]}
{[%emt 00:00:05]} 31. Qd1 {[%clk 00:41:17]} {[%emt 00:00:32]} Qd4 {[%clk
00:54:52]} {[%emt 00:00:07]} 0-1

[Event "Estonian Chess Championship 2021"]
[Site "Tallinn, Paul Keres Chess House, Estonia"]
[Date "2021.12.17"]
[Round "7.2"]
[White "Volodin, Aleksandr"]
[Black "Pedmanson, Albert"]
[Result "1-0"]
[TimeControl "90 minutes for first 40 moves and 15 min. for the rest of the game with 30 sec."]
[WhiteTitle "GM"]
[WhiteFideId "4501950"]
[BlackFideId "4505778"]
[WhiteElo "2461"]
[BlackElo "1888"]

1. d4 {[%clk 01:28:41]} {[%emt 00:02:18]} Nf6 {[%clk 01:30:45]} {[%emt
00:00:15]} 2. g3 {[%clk 01:28:53]} {[%emt 00:00:18]} e6 {[%clk 01:30:56]}
{[%emt 00:00:19]} 3. c4 {[%clk 01:29:06]} {[%emt 00:00:17]} c5 {[%clk
01:31:01]} {[%emt 00:00:25]} 4. Nf3 {[%clk 01:28:56]} {[%emt 00:00:39]} g6
{[%clk 01:26:18]} {[%emt 00:05:13]} 5. Nc3 {[%clk 01:27:13]} {[%emt 00:02:13]}
Bg7 {[%clk 01:23:54]} {[%emt 00:02:55]} 6. Bg2 {[%clk 01:19:23]} {[%emt
00:08:19]} O-O {[%clk 01:20:02]} {[%emt 00:04:23]} 7. O-O {[%clk 01:14:06]}
{[%emt 00:05:47]} Qe7 {[%clk 01:04:43]} {[%emt 00:15:47]} 8. Bf4 {[%clk
01:08:10]} {[%emt 00:06:27]} cxd4 {[%clk 00:56:00]} {[%emt 00:09:13]} 9. Qxd4
{[%clk 01:01:58]} {[%emt 00:06:42]} d5 {[%clk 00:39:20]} {[%emt 00:17:10]} 10.
cxd5 {[%clk 00:52:04]} {[%emt 00:10:24]} Nxd5 {[%clk 00:39:19]} {[%emt
00:00:31]} 11. Nxd5 {[%clk 00:52:11]} {[%emt 00:00:23]} exd5 {[%clk 00:39:24]}
{[%emt 00:00:25]} 12. Qxd5 {[%clk 00:48:59]} {[%emt 00:03:42]} Bxb2 {[%clk
00:30:35]} {[%emt 00:09:18]} 13. Rad1 {[%clk 00:42:37]} {[%emt 00:06:52]} Re8
{[%clk 00:24:13]} {[%emt 00:06:53]} 14. Nd4 {[%clk 00:42:03]} {[%emt 00:01:04]}
Rd8 {[%clk 00:15:52]} {[%emt 00:08:50]} 15. Nf5 {[%clk 00:41:33]} {[%emt
00:01:00]} 1-0

[Event "Estonian Chess Championship 2021"]
[Site "Tallinn, Paul Keres Chess House, Estonia"]
[Date "2021.12.17"]
[Round "7.3"]
[White "Shishkov, Andrei"]
[Black "Timoshin, Andrei"]
[Result "0-1"]
[TimeControl "90 minutes for first 40 moves and 15 min. for the rest of the game with 30 sec."]
[WhiteTitle "IM"]
[WhiteFideId "4500563"]
[BlackFideId "4503503"]
[WhiteElo "2405"]
[BlackElo "2150"]

1. d4 {[%clk 01:30:59]} {[%emt 00:20:09]} f5 {[%clk 01:30:44]} {[%emt
00:00:17]} 2. g3 {[%clk 01:31:21]} {[%emt 00:00:08]} Nf6 {[%clk 01:31:03]}
{[%emt 00:00:11]} 3. Bg2 {[%clk 01:31:46]} {[%emt 00:00:05]} d5 {[%clk
01:31:16]} {[%emt 00:00:17]} 4. c4 {[%clk 01:31:33]} {[%emt 00:00:44]} e6
{[%clk 01:31:02]} {[%emt 00:00:43]} 5. Nf3 {[%clk 01:29:21]} {[%emt 00:02:41]}
Bd6 {[%clk 01:31:01]} {[%emt 00:00:31]} 6. O-O {[%clk 01:29:42]} {[%emt
00:00:09]} c6 {[%clk 01:31:19]} {[%emt 00:00:12]} 7. Bf4 {[%clk 01:28:04]}
{[%emt 00:02:07]} Bxf4 {[%clk 01:31:19]} {[%emt 00:00:30]} 8. gxf4 {[%clk
01:28:31]} {[%emt 00:00:03]} O-O {[%clk 01:31:09]} {[%emt 00:00:40]} 9. Ne5
{[%clk 01:28:10]} {[%emt 00:00:51]} a5 {[%clk 01:24:20]} {[%emt 00:07:20]} 10.
Nd2 {[%clk 01:27:42]} {[%emt 00:00:58]} Bd7 {[%clk 01:14:16]} {[%emt 00:10:34]}
11. Qb3 {[%clk 01:11:46]} {[%emt 00:16:25]} Ra7 {[%clk 01:14:08]} {[%emt
00:00:38]} 12. Qh3 {[%clk 01:11:27]} {[%emt 00:00:49]} Be8 {[%clk 01:04:50]}
{[%emt 00:09:48]} 13. Bf3 {[%clk 01:06:30]} {[%emt 00:05:27]} dxc4 {[%clk
01:01:24]} {[%emt 00:03:57]} 14. Rad1 {[%clk 00:51:44]} {[%emt 00:15:16]} Nd5
{[%clk 00:42:52]} {[%emt 00:19:01]} 15. e3 {[%clk 00:40:27]} {[%emt 00:11:47]}
b5 {[%clk 00:42:03]} {[%emt 00:01:19]} 16. Rc1 {[%clk 00:40:07]} {[%emt
00:00:50]} Rc7 {[%clk 00:39:18]} {[%emt 00:03:16]} 17. Qg2 {[%clk 00:36:33]}
{[%emt 00:04:04]} Kh8 {[%clk 00:32:26]} {[%emt 00:07:22]} 18. a4 {[%clk
00:26:00]} {[%emt 00:11:03]} Nd7 {[%clk 00:27:29]} {[%emt 00:05:27]} 19. Rfd1
{[%clk 00:23:50]} {[%emt 00:02:41]} N7f6 {[%clk 00:24:15]} {[%emt 00:03:44]} 20.
Ra1 {[%clk 00:22:10]} {[%emt 00:02:09]} Ra7 {[%clk 00:23:16]} {[%emt 00:01:28]}
21. Kh1 {[%clk 00:21:36]} {[%emt 00:01:05]} Qe7 {[%clk 00:23:11]} {[%emt
00:00:35]} 22. Bxd5 {[%clk 00:17:01]} {[%emt 00:05:05]} cxd5 {[%clk 00:20:00]}
{[%emt 00:03:40]} 23. axb5 {[%clk 00:17:24]} {[%emt 00:00:07]} Bxb5 {[%clk
00:20:29]} {[%emt 00:00:02]} 24. Ndf3 {[%clk 00:15:52]} {[%emt 00:02:01]} Rb8
{[%clk 00:20:31]} {[%emt 00:00:28]} 25. Ra2 {[%clk 00:14:00]} {[%emt 00:02:23]}
Be8 {[%clk 00:20:43]} {[%emt 00:00:18]} 26. Rda1 {[%clk 00:12:41]} {[%emt
00:01:49]} a4 {[%clk 00:20:55]} {[%emt 00:00:17]} 27. Qh3 {[%clk 00:10:56]}
{[%emt 00:02:14]} Kg8 {[%clk 00:20:47]} {[%emt 00:00:39]} 28. Qf1 {[%clk
00:10:03]} {[%emt 00:01:24]} Ne4 {[%clk 00:19:11]} {[%emt 00:02:06]} 29. Kg2
{[%clk 00:07:34]} {[%emt 00:02:59]} Rab7 {[%clk 00:19:33]} {[%emt 00:00:08]} 30.
Qc1 {[%clk 00:06:28]} {[%emt 00:01:36]} Rb3 {[%clk 00:18:57]} {[%emt 00:01:07]}
31. Nd2 {[%clk 00:04:53]} {[%emt 00:02:05]} Nxd2 {[%clk 00:18:26]} {[%emt
00:01:01]} 32. Qxd2 {[%clk 00:05:21]} {[%emt 00:00:02]} Qb4 {[%clk 00:18:16]}
{[%emt 00:00:39]} 33. Qd1 {[%clk 00:02:56]} {[%emt 00:02:55]} Rxb2 {[%clk
00:17:54]} {[%emt 00:00:53]} 34. Rxa4 {[%clk 00:02:39]} {[%emt 00:00:47]} Bxa4
{[%clk 00:17:35]} {[%emt 00:00:48]} 35. Rxa4 {[%clk 00:03:05]} {[%emt
00:00:04]} Qb3 {[%clk 00:16:43]} {[%emt 00:01:22]} 36. Qh5 {[%clk 00:03:17]}
{[%emt 00:00:19]} Qxa4 {[%clk 00:15:37]} {[%emt 00:01:36]} 37. Qf7+ {[%clk
00:03:39]} {[%emt 00:00:08]} Kh8 {[%clk 00:16:02]} {[%emt 00:00:05]} 38. Qxe6
{[%clk 00:03:50]} {[%emt 00:00:19]} R2b7 {[%clk 00:15:34]} {[%emt 00:00:58]}
0-1